{"text_format":"1","workbook":"xlsx","n_sheets":6,"sheets":["Basisgegevens","Formulier","Toelichting en definities","Gemeente codes","Normen","Historie"],"not_rendered":{"charts":0,"images":0,"macros":1,"external_links":0,"defined_names":13,"comments":1,"pivot_tables":0},"unopened":[],"bounds":{"document_bytes":16777216,"sheet_cells":100000,"rows_first":2000,"rows_last":500,"rows_between":2000,"halvings":0,"cell_chars":16384,"cell_head_chars":4096},"cells_cut":0,"cells_raw":0,"read":"whole","date_system":"1900"}

{"sheet":"Basisgegevens","index":0,"n_rows":36,"n_cols":5,"rows_kept":36,"cut":false,"hidden":false,"merged":[]}
[null,"v2.7.1-Ext"]
[]
[null,null,"Leerplichttelling"]
[]
[]
[]
[]
[]
[]
[]
[]
[null,"Gemeente",1,null,"*"]
[]
[null,"LAOV nummer",{"$f":"IF(ISERROR(VLOOKUP(C12,'Gemeente codes'!A3:B346,2,FALSE)),\"\",VLOOKUP(C12,'Gemeente codes'!A3:B346,2,FALSE))","v":""},null,"Wordt automatisch gevuld na keuze gemeente"]
[]
[null,"Invuldatum","2024-09-13T14:52:07",null,"*"]
[]
[null,null,"Het formulier bevat automatische koppelingen om het invullen"]
[null,null,"voor u zo gemakkelijk mogelijk te maken. Gelieve deze structuur"]
[null,null,"niet te veranderen."]
[]
[null,null,"Tijdens het afsluiten wordt het ingevulde formulier automatisch"]
[null,null,"opgeslagen met de laov-code en de naam van uw gemeente."]
[null,null,"Graag het automatisch opgeslagen formulier per e-mail"]
[null,null,"toesturen aan:"]
[null,null,"Leerplichttelling@duo.nl"]
[]
[]
[]
[]
[]
[]
[]
[]
[]
[null,null,"* Verplicht in te vullen !"]

{"sheet":"Formulier","index":1,"n_rows":51,"n_cols":32,"rows_kept":51,"cut":false,"hidden":false,"merged":[[47,2,47,3],[12,1,15,1],[12,4,12,6],[13,4,13,6],[14,2,15,2],[15,4,15,6],[14,4,14,6],[21,4,21,6],[28,1,31,1],[36,2,38,2],[26,1,27,1],[24,2,24,3],[12,2,13,2],[32,1,38,1],[32,2,35,2],[23,1,23,3],[1,1,1,7],[9,1,11,1],[9,4,9,6],[14,7,14,13],[10,4,10,6],[10,7,10,13],[11,4,11,6],[12,7,12,13],[9,7,9,13],[11,7,11,13],[6,4,6,6],[6,7,6,13],[7,1,8,1],[7,4,7,6],[7,7,7,13],[8,4,8,6],[20,4,20,6],[22,4,22,6],[19,4,19,6],[25,15,25,17],[16,1,18,1],[16,4,16,6],[17,4,17,6],[17,7,17,13],[18,7,18,13],[18,4,18,6],[16,7,16,13],[25,18,25,24],[8,7,8,13],[20,7,20,13],[13,7,13,13],[15,7,15,13],[22,7,22,13],[21,7,21,13],[19,7,19,13],[26,18,26,24],[27,15,27,17],[27,18,27,24],[26,15,26,17],[35,15,35,17],[29,18,29,24],[30,15,30,17],[30,18,30,24],[35,18,35,24],[28,18,28,24],[32,18,32,24],[29,15,29,17],[32,15,32,17],[28,15,28,17],[38,18,38,24],[36,18,36,24],[39,15,39,17],[36,15,36,17],[41,15,41,17],[41,18,41,24],[40,15,40,17],[40,18,40,24],[38,15,38,17],[42,15,42,17],[42,18,42,24],[43,15,43,17],[43,18,43,24],[44,15,44,17],[44,18,44,24],[45,15,45,17],[45,18,45,24],[39,18,39,24],[48,15,48,17],[42,1,48,1],[47,15,47,17],[47,18,47,24],[39,2,41,2],[48,2,48,3],[42,2,42,3],[43,2,43,3],[44,2,44,3],[45,2,45,3],[46,2,46,3],[39,1,41,1],[48,18,48,24]]}
[null,"Opgave volgens artikel 25 Leerplichtwet"]
[null,"Betreft leer- en kwalificatieplichtigen: jongeren van 5 tot 18 jaar zonder startkwalificatie, ingeschreven in de BRP.",null,null,null,null,null,null,null,null,null,null,null,null,null,null,null,null,null,null,null,null,null,null,null," "]
[null,{"$f":"CONCATENATE(\"Schooljaar \",YEAR(NOW())-1,\"-\",YEAR(NOW()))","v":"Schooljaar 2023-2024"}]
[null,"Laov-nummer:",{"$f":"+Basisgegevens!C14","v":""},null,null,"Als een waarde onbekend is, gelieve de cel in te vullen met '9999'."]
[null,"Gemeentenaam:  ",{"$f":"IF(ISNA(VLOOKUP(C4,'Gemeente codes'!B3:C346,2,FALSE)),\"\",VLOOKUP(C4,'Gemeente codes'!B3:C346,2,FALSE))","v":""},null,null,"Als een waarde nul is '0' invullen."]
[null,null,null,null,"Aantal"]
[null,null,null,null,"Toelichting",null,null,"Definities"]
[null,"vervangende leerplicht","art. 3a"]
[null,null,"art. 3b"]
[null,"vrijstellingen","art. 5 onder a"]
[null,null,"art. 5 onder b"]
[null,null,"art. 5 onder c"]
[null,"Ongeoorloofd verzuim","absoluut","totaal"]
[null,null,null,"weer ingeschreven"]
[null,null,"relatief","totaal"]
[null,null,null,"waaronder luxe verzuim"]
[null,"processen verbaal","absoluut verzuim"]
[null,null,"relatief verzuim"]
[null,null,"artikel 13a"]
[null,"thuiszitters","per 1 sept"]
[null,null,"nieuwe gevallen"]
[null,null,"opgelost"]
[null,null,"18 jaar geworden"]
[null,"Het totaal aantal Leerplichtige jongeren (5 tot 16 jaar) en kwalificatieplichtige jongeren (16 tot 18 jaar) van de gemeente",null,null,null,"*",null,null,null,null,"Ongespecificeerd",null,null,{"$f":"E24-N26","v":0}]
[null,null,"Indien de muiswijzer over een rood driehoekje wordt bewogen, dan verschijnt er een definitie. Voor een extra toelichting op de definitie, zie ook het werkblad \"Toelichting en definities\".",null,"(speciaal) basis-onderwijs","(voortgezet) speciaal onderwijs","voortgezet onderwijs","middelbaar beroepsonderwijs",null,null,"onderwijs onbekend","geen onderwijs",null,"totaal"]
[null,"Aantal leer- en kwalificatieplichtige jongeren \n laatst genoten onderwijs: (specificering)",null,null,null,null,null,null,null,null,null,null,null,{"$f":"IF(ISNUMBER(E26),IF(E26<>9999,E26,0),0)+IF(ISNUMBER(F26),IF(F26<>9999,F26,0),0)+IF(ISNUMBER(G26),IF(G26<>9999,G26,0),0)+IF(ISNUMBER(H26),IF(H26<>9999,H26,0),0)+IF(ISNUMBER(K26),IF(K26<>9999,K26,0),0)+IF(ISNUMBER(L26),IF(L26<>9999,L26,0),0)","v":0},null,"Toelichting",null,null,"Definities"]
[null,"Vervangende leerplicht","art. 3a",null,"nvt",null,null,"nvt","*",null,null,"nvt",{"$f":"SUMIF(E27:L27,\"<>9999\",E27:L27)","v":0},{"$f":"IF(ISNUMBER(E27),IF(E27<>9999,E27,0),0)+IF(ISNUMBER(F27),IF(F27<>9999,F27,0),0)+IF(ISNUMBER(G27),IF(G27<>9999,G27,0),0)+IF(ISNUMBER(H27),IF(H27<>9999,H27,0),0)+IF(ISNUMBER(K27),IF(K27<>9999,K27,0),0)+IF(ISNUMBER(L27),IF(L27<>9999,L27,0),0)","v":0},{"$f":"IF(N27=\"\",\"\",IF(N27<>M27,\"Totaal (\"&N27&\") klopt niet met saldo (\"&M27&\") !\n \n    ( ESC  = Deze popup verwijderen )\",\"\"))","v":""}]
[null,null,"art. 3b",null,"nvt",null,null,null,"*",null,null,"nvt",{"$f":"SUMIF(E28:L28,\"<>9999\",E28:L28)","v":0},{"$f":"IF(ISNUMBER(E28),IF(E28<>9999,E28,0),0)+IF(ISNUMBER(F28),IF(F28<>9999,F28,0),0)+IF(ISNUMBER(G28),IF(G28<>9999,G28,0),0)+IF(ISNUMBER(H28),IF(H28<>9999,H28,0),0)+IF(ISNUMBER(K28),IF(K28<>9999,K28,0),0)+IF(ISNUMBER(L28),IF(L28<>9999,L28,0),0)","v":0},{"$f":"IF(N28=\"\",\"\",IF(N28<>M28,\"Totaal (\"&N28&\") klopt niet met saldo (\"&M28&\") !\n \n    ( ESC  = Deze popup verwijderen )\",\"\"))","v":""}]
[null,"Vrijstellingen","art. 5 onder a",null,null,null,null,null,"*",null,null,null,0,0,""]
[null,null,"art. 5 onder b",null,null,null,null,null,"*",null,null,null,0,0,""]
[null,null,"art. 5 onder c",null,null,null,null,null,"*",null,null,null,0,0,""]
[null,null,"art. 15",null,"nvt",null,null,null,"*",null,null,null,0,0,""]
[null,"Ongeoorloofd verzuim","absoluut","totaal",null,null,null,null,null,null,null,null,0,0,""]
[null,null,null,"langer dan 3 maanden",null,null,null,null,null,null,null,null,null,0,null,null,null,null,null,null,null,null,null,null,null,null,{"$f":"IF(E$34<0,1,IF(E$34=9999,0,IF(E$34>SUM(E$33),1,0)))","v":0},{"$f":"IF(F$34<0,1,IF(F$34=9999,0,IF(F$34>SUM(F$33),1,0)))","v":0},{"$f":"IF(G$34<0,1,IF(G$34=9999,0,IF(G$34>SUM(G$33),1,0)))","v":0},{"$f":"IF(H$34<0,1,IF(H$34=9999,0,IF(H$34>SUM(H$33),1,0)))","v":0},{"$f":"IF(K$34<0,1,IF(K$34=9999,0,IF(K$34>SUM(K$33),1,0)))","v":0},{"$f":"IF(L$34<0,1,IF(L$34=9999,0,IF(L$34>SUM(L$33),1,0)))","v":0}]
[null,null,null,"langer dan 4 aaneengesloten weken",null,null,null,null,null,null,null,null,null,{"$f":"IF(ISNUMBER(E35),IF(E35<>9999,E35,0),0)+IF(ISNUMBER(F35),IF(F35<>9999,F35,0),0)+IF(ISNUMBER(G35),IF(G35<>9999,G35,0),0)+IF(ISNUMBER(H35),IF(H35<>9999,H35,0),0)+IF(ISNUMBER(K35),IF(K35<>9999,K35,0),0)+IF(ISNUMBER(L35),IF(L35<>9999,L35,0),0)","v":0},null,null,null,null,null,null,null,null,null,null,null,null,{"$f":"IF(E$35<0,1,IF(E$35=9999,0,IF(E$35>SUM(E$33),1,0)))","v":0},{"$f":"IF(F$35<0,1,IF(F$35=9999,0,IF(F$35>SUM(F$33),1,0)))","v":0},{"$f":"IF(G$35<0,1,IF(G$35=9999,0,IF(G$35>SUM(G$33),1,0)))","v":0},{"$f":"IF(H$35<0,1,IF(H$35=9999,0,IF(H$35>SUM(H$33),1,0)))","v":0},{"$f":"IF(K$35<0,1,IF(K$35=9999,0,IF(K$35>SUM(K$33),1,0)))","v":0},{"$f":"IF(L$35<0,1,IF(L$35=9999,0,IF(L$35>SUM(L$33),1,0)))","v":0}]
[null,null,null,"weer ingeschreven",null,null,null,null,null,null,null,null,0,0,""]
[null,null,"relatief","totaal",null,null,null,null,null,null,"nvt","nvt",0,0,""]
[null,null,null,"waarvan herhaald",null,null,null,null,null,null,"nvt","nvt",null,0,null,null,null,null,null,null,null,null,null,null,null,null,{"$f":"IF(E$38<0,1,IF(E$38=9999,0,IF(E$38>SUM(E$37),1,0)))","v":0},{"$f":"IF(F$38<0,1,IF(F$38=9999,0,IF(F$38>SUM(F$37),1,0)))","v":0},{"$f":"IF(G$38<0,1,IF(G$38=9999,0,IF(G$38>SUM(G$37),1,0)))","v":0},{"$f":"IF(H$38<0,1,IF(H$38=9999,0,IF(H$38>SUM(H$37),1,0)))","v":0}]
[null,null,null,"luxe verzuim",null,null,null,null,null,null,"nvt","nvt",0,0,"",null,null,null,null,null,null,null,null,null,null,null,{"$f":"IF(E$39<0,1,IF(E$39=9999,0,IF(E$39>SUM(E$37),1,0)))","v":0},{"$f":"IF(F$39<0,1,IF(F$39=9999,0,IF(F$39>SUM(F$37),1,0)))","v":0},{"$f":"IF(G$39<0,1,IF(G$39=9999,0,IF(G$39>SUM(G$37),1,0)))","v":0},{"$f":"IF(H$39<0,1,IF(H$39=9999,0,IF(H$39>SUM(H$37),1,0)))","v":0}]
[null,"Handhaving","processen-verbaal","relatief verzuim",null,null,null,null,null,null,"nvt","nvt",0,0,"",null,null,null,null,null,null,null,null,null,null,null,{"$f":"IF(E40=9999,0,IF(E40<0,1,IF(E40>9999,1,IF(E40>E37,2,0))))","v":0},{"$f":"IF(F40<0,1,IF(F40>9999,1,IF(F40>F37,2,0)))","v":0},{"$f":"IF(G40<0,1,IF(G40>9999,1,IF(G40>G37,2,0)))","v":0},{"$f":"IF(H40<0,1,IF(H40>9999,1,IF(H40>H37,2,0)))","v":0}]
[null,null,null,"luxe verzuim",null,null,null,null,null,null,"nvt","nvt",0,0,"",null,null,null,null,null,null,null,null,null,null,null,{"$f":"IF(E41=9999,0,IF(E41<0,1,IF(E41>9999,1,IF(E41>E39,2,0))))","v":0},{"$f":"IF(F41=9999,0,IF(F41<0,1,IF(F41>9999,1,IF(F41>F39,2,0))))","v":0},{"$f":"IF(G41=9999,0,IF(G41<0,1,IF(G41>9999,1,IF(G41>G39,2,0))))","v":0},{"$f":"IF(H41=9999,0,IF(H41<0,1,IF(H41>9999,1,IF(H41>H39,2,0))))","v":0}]
[null,null,null,"absoluut verzuim",null,null,null,null,null,null,null,null,0,0,"",null,null,null,null,null,null,null,null,null,null,null,{"$f":"IF(E42=9999,0,IF(E42<0,1,IF(E42>9999,1,IF(E42>E33,2,0))))","v":0},{"$f":"IF(F42=9999,0,IF(F42<0,1,IF(F42>9999,1,IF(F42>F33,2,0))))","v":0},{"$f":"IF(G42=9999,0,IF(G42<0,1,IF(G42>9999,1,IF(G42>G33,2,0))))","v":0},{"$f":"IF(H42=9999,0,IF(H42<0,1,IF(H42>9999,1,IF(H42>H33,2,0))))","v":0},{"$f":"IF(K42=9999,0,IF(K42<0,1,IF(K42>9999,1,IF(K42>K33,2,0))))","v":0},{"$f":"IF(L42=9999,0,IF(L42<0,1,IF(L42>9999,1,IF(L42>L33,2,0))))","v":0}]
[null,"Langdurig relatief verzuim","bij aanvang van schooljaar",null,null,null,null,null,null,null,"nvt","nvt",0,0,""]
[null,null,"nieuwe gevallen daarna",null,null,null,null,null,null,null,"nvt","nvt",0,0,""]
[null,null,"langer dan 3 maanden",null,null,null,null,null,null,null,"nvt","nvt",{"$f":"SUMIF(E45:L45,\"<>9999\",E45:L45)","v":0},0,{"$f":"IF(N45=\"\",\"\",IF(N45<>M45,\"Totaal (\"&N45&\") klopt niet met saldo (\"&M45&\") !\n \n    ( ESC  = Deze popup verwijderen )\",\"\"))","v":""},null,null,null,null,null,null,null,null,null,null,null,{"$f":"IF(E$45<0,1,IF(E$45=9999,0,IF(E$45>SUM(IF(E$43=9999,0,E$43),IF(E$44=9999,0,E$44)),1,0)))","v":0},{"$f":"IF(F$45<0,1,IF(F$45=9999,0,IF(F$45>SUM(IF(F$43=9999,0,F$43),IF(F$44=9999,0,F$44)),1,0)))","v":0},{"$f":"IF(G$45<0,1,IF(G$45=9999,0,IF(G$45>SUM(IF(G$43=9999,0,G$43),IF(G$44=9999,0,G$44)),1,0)))","v":0},0]
[null,null,"verhuisd (in geval van overlijden, hier meetellen)",null,null,null,null,null,null,null,"nvt","nvt",0,0,"",null,null,null,null,null,null,null,null,null,null,null,{"$f":"IF(E$46=9999,0,IF(E$46<0,1,IF(E$46>(IF(E$43=9999,0,E$43)+IF(E$44=9999,0,E$44))-(IF(E$47=9999,0,E$47)+IF(E$48=9999,0,E$48)),1,0)))","v":0},{"$f":"IF(F$46=9999,0,IF(F$46<0,1,IF(F$46>(IF(F$43=9999,0,F$43)+IF(F$44=9999,0,F$44))-(IF(F$47=9999,0,F$47)+IF(F$48=9999,0,F$48)),1,0)))","v":0},0,0]
[null,null,"18 jaar geworden",null,null,null,null,null,null,null,"nvt","nvt",0,0,"",null,null,null,null,null,null,null,null,null,null,null,{"$f":"IF(E$47=9999,0,IF(E$47<0,1,IF(E$47>(IF(E$43=9999,0,E$43)+IF(E$44=9999,0,E$44))-(IF(E$46=9999,0,E$46)+IF(E$48=9999,0,E$48)),1,0)))","v":0},{"$f":"IF(F$47=9999,0,IF(F$47<0,1,IF(F$47>(IF(F$43=9999,0,F$43)+IF(F$44=9999,0,F$44))-(IF(F$46=9999,0,F$46)+IF(F$48=9999,0,F$48)),1,0)))","v":0},0,0]
[null,null,"opgelost",null,null,null,null,null,null,null,"nvt","nvt",0,0,"",null,null,null,null,null,null,null,null,null,null,null,{"$f":"IF(E$48=9999,0,IF(E$48<0,1,IF(E$48>(IF(E$43=9999,0,E$43)+IF(E$44=9999,0,E$44))-(IF(E$46=9999,0,E$46)+IF(E$47=9999,0,E$47)),1,0)))","v":0},{"$f":"IF(F$48=9999,0,IF(F$48<0,1,IF(F$48>(IF(F$43=9999,0,F$43)+IF(F$44=9999,0,F$44))-(IF(F$46=9999,0,F$46)+IF(F$47=9999,0,F$47)),1,0)))","v":0},0,0]
[null,null,"actueel aantal langdurig relatief verzuimers\n (wordt berekend)",null,{"$f":"IF(ISNUMBER(E43),IF(E43<>9999,E43,0),0)+IF(ISNUMBER(E44),IF(E44<>9999,E44,0),0)-IF(ISNUMBER(E46),IF(E46<>9999,E46,0),0)-IF(ISNUMBER(E47),IF(E47<>9999,E47,0),0)-IF(ISNUMBER(E48),IF(E48<>9999,E48,0),0)","v":0},{"$f":"IF(ISNUMBER(F43),IF(F43<>9999,F43,0),0)+IF(ISNUMBER(F44),IF(F44<>9999,F44,0),0)-IF(ISNUMBER(F46),IF(F46<>9999,F46,0),0)-IF(ISNUMBER(F47),IF(F47<>9999,F47,0),0)-IF(ISNUMBER(F48),IF(F48<>9999,F48,0),0)","v":0},{"$f":"IF(ISNUMBER(G43),IF(G43<>9999,G43,0),0)+IF(ISNUMBER(G44),IF(G44<>9999,G44,0),0)-IF(ISNUMBER(G46),IF(G46<>9999,G46,0),0)-IF(ISNUMBER(G47),IF(G47<>9999,G47,0),0)-IF(ISNUMBER(G48),IF(G48<>9999,G48,0),0)","v":0},{"$f":"IF(ISNUMBER(H43),IF(H43<>9999,H43,0),0)+IF(ISNUMBER(H44),IF(H44<>9999,H44,0),0)-IF(ISNUMBER(H46),IF(H46<>9999,H46,0),0)-IF(ISNUMBER(H47),IF(H47<>9999,H47,0),0)-IF(ISNUMBER(H48),IF(H48<>9999,H48,0),0)","v":0},null,null,"nvt","nvt",{"$f":"+M43+M44-M46-M48","v":0},0,{"$f":"IF(N49=\"\",\"\",IF(N49<>M49,\"Totaal (\"&N49&\") klopt niet met saldo (\"&M49&\") !\n \n        ( ESC  = Deze popup verwijderen )\",\"\"))","v":""}]
[]
[null,null,null,null,"* Verplicht in te vullen !"]

{"sheet":"Toelichting en definities","index":2,"n_rows":31,"n_cols":8,"rows_kept":31,"cut":false,"hidden":false,"merged":[[4,0,6,0],[21,0,23,0],[24,0,30,0],[8,0,9,0],[18,0,20,0],[14,0,17,0]]}
[null,"In de eerste 4 kolommen vindt u de definitie van de gegevens en een toelichting. In de 1e invulbare kolom geeft u aan als er bij de huidige cijfers niet (helemaal)",null,null,null,null,null,{"$f":"Normen!B1","v":2023}]
[null,{"$f":"CONCATENATE(\"volgens de definitie is gewerkt. In de 2e invulbare kolom geeft u aan als de opgegeven cijfers over \",H1,\"-\",H2,\" niet volledig of juist zijn. Geef ook de reden op.\")","v":"volgens de definitie is gewerkt. In de 2e invulbare kolom geeft u aan als de opgegeven cijfers over 2023-2024 niet volledig of juist zijn. Geef ook de reden op."},null,null,null,null,null,{"$f":"Normen!C1","v":2024}]
[null,"Duo gebruikt de informatie om de resultaten van de telling toe te lichten en te begrijpen. Ook om toekomstige tellingen te verbeteren."]
["Onderdeel op formulier","naam op formulier","definitie bij naam op formulier","toelichting",{"$f":"CONCATENATE(\"in te vullen door gemeente: is er voor het huidige verslagjaar \",H1,\"-\",H2,\" gewerkt conform deze definitie en toelichting, zo nee: wat zijn de verschillen?  \")","v":"in te vullen door gemeente: is er voor het huidige verslagjaar 2023-2024 gewerkt conform deze definitie en toelichting, zo nee: wat zijn de verschillen?  "},{"$f":"CONCATENATE(\"in te vullen door de gemeente: zijn de opgegeven cijfers over het verslagjaar \",H1,\"-\",H2,\" volledig en juist. Zo nee, waarom niet?\")","v":"in te vullen door de gemeente: zijn de opgegeven cijfers over het verslagjaar 2023-2024 volledig en juist. Zo nee, waarom niet?"}]
["Algemeen","Het totaal aantal Leerplichtige jongeren (5 tot 16 jaar) en kwalificatieplichtige jongeren (16 tot 18 jaar) van de gemeente",{"$f":"CONCATENATE(\"Leerplichtige jongeren van 5 tot 16 jaar en kwalificatieplichtige jongeren van 16 tot 18 jaar. Het gaat om alle leer- en kwalificatieplichtige jongeren die op de peildatum 1 oktober \",H1,\" waren ingeschreven in de BRP.\")","v":"Leerplichtige jongeren van 5 tot 16 jaar en kwalificatieplichtige jongeren van 16 tot 18 jaar. Het gaat om alle leer- en kwalificatieplichtige jongeren die op de peildatum 1 oktober 2023 waren ingeschreven in de BRP."},"Jongeren zijn leerplichtig vanaf 5 jaar. Ze blijven dit tot het einde van het schooljaar in het 16e levensjaar. Daarna zijn leerlingen kwalificatieplichtig tot de dag dat ze 18 worden of als ze een startkwalificatie hebben behaald. Dat is een havo- of vwo-diploma, of een mbo-diploma op ten minste niveau 2. \n\nDe kwalificatieplicht geldt niet voor jongeren die een getuigschrift of een schooldiploma praktijkonderwijs hebben. Kwalificatieplicht geldt ook niet voor jongeren die voortgezet speciaal onderwijs in het arbeidsmarktgerichte uitstroomprofiel of het uitstroomprofiel dagbesteding hebben gevolgd. Het gaat alleen om jongeren die zijn ingeschreven in de BRP."]
[null,"Onderwijs onbekend","De leerling volgt, of volgde, wel onderwijs maar de onderwijssoort is niet bekend (alleen bij uitzondering invullen).\n\n"]
[null,"Geen onderwijs ","De jongere heeft nog geen onderwijs gevolgd. \n\n"]
["Specificering","Specificatie naar laatst genoten onderwijs","Leerplichtige jongeren van 5 tot 16 jaar en kwalificatieplichtige jongeren van 16 tot 18 jaar gespecificeerd naar laatst genoten onderwijs. ","De verdeling van het totale opgegeven aantal van de doelgroep naar laatst gevolgde onderwijs. Als iedereen in de groep is ingedeeld, komt het ongespecificeerde aantal op nul uit. Wat ongespecificeerd is, telt mee met ‘onderwijs onbekend’."]
["Vervangende leerplicht ","Vervangende leerplicht artikel 3a","Het aantal jongeren van 14 of 15 jaar dat ingeschreven is in het vo/vso waarvoor de gemeente voor het schooljaar vervangende leerplicht in de vorm van een duaal programma heeft goedgekeurd.\n\n\n\n\n",{"$f":"CONCATENATE(\"Geldt voor jongeren van 14 of 15 jaar. De leerplichtambtenaar doet eerst onderzoek om de jongere toch onderwijs te laten volgen. \",\"Lukt dit niet? Dan kan de gemeente bepalen dat de jongere een duaal programma kan volgen. Een duaal programma is een bijzonder onderwijsprogramma dat algemene vorming en werkervaring combineert. \",\"De jongere blijft dan ingeschreven aan een school voor de 1e fase voortgezet onderwijs of (voortgezet)speciaal onderwijs. Tel alle jongeren mee voor wie de gemeente vervangende leerplicht voor schooljaar \",H1,\"-\",H2, \" heeft goedgekeurd. Tel ook de jongeren mee die niet meer in de gemeente wonen.\")","v":"Geldt voor jongeren van 14 of 15 jaar. De leerplichtambtenaar doet eerst onderzoek om de jongere toch onderwijs te laten volgen. Lukt dit niet? Dan kan de gemeente bepalen dat de jongere een duaal programma kan volgen. Een duaal programma is een bijzonder onderwijsprogramma dat algemene vorming en werkervaring combineert. De jongere blijft dan ingeschreven aan een school voor de 1e fase voortgezet onderwijs of (voortgezet)speciaal onderwijs. Tel alle jongeren mee voor wie de gemeente vervangende leerplicht voor schooljaar 2023-2024 heeft goedgekeurd. Tel ook de jongeren mee die niet meer in de gemeente wonen."}]
[null,"Vervangende leerplicht artikel 3b","Het aantal jongeren in het laatste schooljaar van de volledige leerplicht waarvoor de gemeente voor het schooljaar vervangende leerplicht in de vorm van een duaal programma heeft goedgekeurd.\n\n\n",{"$f":"CONCATENATE(\"De jongere staat ingeschreven bij een school of instelling die 1 van deze soorten aanbiedt:\n- volledig dagonderwijs\n- een bij wet geregelde combinatie van leren en werken\",\"\n- een onderwijsprogramma, zoals bepaald in artikel 25a, lid 3, onderdeel d, van de Wet op het vo (samenwerking vo en mbo) \n- een onderwijsprogramma, zoals bepaald in artikel 58a, lid 3, onderdeel d, van de Wet op het vo (vavo)\",\"\nTel alle jongeren mee voor wie de gemeente vervangende leerplicht voor het schooljaar \",H1,\"-\",H2,\" heeft goedgekeurd. Tel ook de jongeren mee die niet meer in de gemeente wonen.\")","v":"De jongere staat ingeschreven bij een school of instelling die 1 van deze soorten aanbiedt:\n- volledig dagonderwijs\n- een bij wet geregelde combinatie van leren en werken\n- een onderwijsprogramma, zoals bepaald in artikel 25a, lid 3, onderdeel d, van de Wet op het vo (samenwerking vo en mbo) \n- een onderwijsprogramma, zoals bepaald in artikel 58a, lid 3, onderdeel d, van de Wet op het vo (vavo)\nTel alle jongeren mee voor wie de gemeente vervangende leerplicht voor het schooljaar 2023-2024 heeft goedgekeurd. Tel ook de jongeren mee die niet meer in de gemeente wonen."}]
["Vrijstellingen","Vrijstellingen artikel 5 onder a","Het aantal jongeren met een vrijstelling omdat zij op lichamelijke of psychische gronden ongeschikt zijn om op een school te worden ingeschreven.\n\n",{"$f":"CONCATENATE(\"Vul de aantallen in en ga uit van het laatst genoten onderwijs. Degenen die nog geen onderwijs volgden vallen onder 'geen onderwijs'. \nDe gemeente telt alle jongeren:\n- die op 1 augustus \", H1, \" in hun gemeente woonden én een vrijstelling hadden\n- waar de gemeente na die datum een vrijstelling voor heeft afgegeven voor schooljaar \",H1,\"-\",H2)","v":"Vul de aantallen in en ga uit van het laatst genoten onderwijs. Degenen die nog geen onderwijs volgden vallen onder 'geen onderwijs'. \nDe gemeente telt alle jongeren:\n- die op 1 augustus 2023 in hun gemeente woonden én een vrijstelling hadden\n- waar de gemeente na die datum een vrijstelling voor heeft afgegeven voor schooljaar 2023-2024"}]
[null,"Vrijstellingen artikel 5 onder b","Het aantal jongeren met een vrijstelling op grond van bezwaren tegen de richting van de scholen binnen redelijke afstand van de woning.\n\n",{"$f":"CONCATENATE(\"Vul de aantallen in en ga uit van het laatst genoten onderwijs. Degenen die nog geen onderwijs volgden vallen onder 'geen onderwijs'. \nDe gemeente telt alle jongeren:\n- die op 1 augustus \", H1, \" in hun gemeente woonden én een vrijstelling hadden\n- waar de gemeente na die datum een vrijstelling voor heeft afgegeven voor schooljaar \",H1,\"-\",H2)","v":"Vul de aantallen in en ga uit van het laatst genoten onderwijs. Degenen die nog geen onderwijs volgden vallen onder 'geen onderwijs'. \nDe gemeente telt alle jongeren:\n- die op 1 augustus 2023 in hun gemeente woonden én een vrijstelling hadden\n- waar de gemeente na die datum een vrijstelling voor heeft afgegeven voor schooljaar 2023-2024"}]
[null,"Vrijstellingen artikel 5 onder c","Het aantal jongeren met een vrijstelling op grond van het ingeschreven zijn bij een onderwijsinstelling buiten Nederland en het geregeld bezoeken daarvan.\n\n",{"$f":"CONCATENATE(\"Vul de aantallen in en ga uit van het laatst genoten onderwijs. Degenen die nog geen onderwijs volgden vallen onder 'geen onderwijs'. \nDe gemeente telt alle jongeren:\n- die op 1 augustus \", H1, \" in hun gemeente woonden én een vrijstelling hadden\n- waar de gemeente na die datum een vrijstelling voor heeft afgegeven voor schooljaar \",H1,\"-\",H2)","v":"Vul de aantallen in en ga uit van het laatst genoten onderwijs. Degenen die nog geen onderwijs volgden vallen onder 'geen onderwijs'. \nDe gemeente telt alle jongeren:\n- die op 1 augustus 2023 in hun gemeente woonden én een vrijstelling hadden\n- waar de gemeente na die datum een vrijstelling voor heeft afgegeven voor schooljaar 2023-2024"}]
[null,"Vrijstellingen artikel 15 ","Het aantal kwalificatieplichtige jongeren dat een vrijstelling heeft gekregen vanwege bijzondere omstandigheden, waarbij is aangetoond dat de jongere op andere wijze voldoende onderwijs geniet.\n\n",{"$f":"CONCATENATE(\"Vul de aantallen in en ga uit van het laatst genoten onderwijs. Degenen die nog geen onderwijs volgden vallen onder 'geen onderwijs'. \nDe gemeente telt alle jongeren:\n- die op 1 augustus \", H1, \" in hun gemeente woonden én een vrijstelling hadden\n- waar de gemeente na die datum een vrijstelling voor heeft afgegeven voor schooljaar \",H1,\"-\",H2)","v":"Vul de aantallen in en ga uit van het laatst genoten onderwijs. Degenen die nog geen onderwijs volgden vallen onder 'geen onderwijs'. \nDe gemeente telt alle jongeren:\n- die op 1 augustus 2023 in hun gemeente woonden én een vrijstelling hadden\n- waar de gemeente na die datum een vrijstelling voor heeft afgegeven voor schooljaar 2023-2024"}]
["Absoluut verzuim","Absoluut verzuim totaal ","Het aantal leer- of kwalificatieplichtige jongeren dat absoluut verzuimer is (geweest) gedurende het schooljaar: de jongere is niet ingeschreven bij een onderwijsinstelling en beschikt niet over een vrijstelling.","Bij absoluut verzuim is een leerplichtige of kwalificatieplichtige jongere zonder vrijstelling niet ingeschreven bij een school of onderwijsinstelling. Een vrijstelling kan worden gegeven of kan ontstaan door rechtswege. Bij het invullen van de aantallen, ga uit van de laatst genoten onderwijssoort. Kijk daarbij naar het hele schooljaar (dus níét 1 peildatum) en tel alléén de specifieke personen mee (dus níét het aantal gevallen).\nHet gaat hier om:\n1. de groep potentiële ‘absoluut verzuimers’ van 5 tot en met 17 jaar die door BRP-ROD koppeling naar voren zijn gekomen, en\n2. waarop administratieve correcties zijn uitgevoerd. Tel niet de jongeren mee die naar voren zijn gekomen uit de koppeling BRP-ROD:\n- die een startkwalificatie hebben behaald\n- die zijn overleden in het schooljaar\n- die zijn verhuisd naar het buitenland\n- die zijn verhuisd naar een andere gemeente\n- die na verhuizing ingeschreven blijven op hun oude school\n- die al een vrijstelling hebben\n- die zijn ingeschreven in het niet bekostigd onderwijs (NBI)\n- die in het buitenland zijn ingeschreven\n- waarvan de inschrijving nog niet bekend was in leerplichtregistratie of niet was doorgegeven aan ROD\nNa deze correcties blijven de absoluut verzuimers over die nog teruggeleid moeten worden naar school."]
[null,"Langer dan 3 maanden","Het aantal leer- of kwalificatieplichtige jongeren zonder vrijstelling dat langer dan 3 maanden niet was ingeschreven op een school.\n\n","Vermeld bij de onderwijssoort waar de leerling het laatst ingeschreven was."]
[null,"Langer dan 4 aangesloten weken","Het aantal leer- of kwalificatieplichtige jongeren zonder vrijstelling dat langer dan 4 aaneengesloten weken niet was ingeschreven op een school.\n\n","Vermeld bij de onderwijssoort waar de leerling het laatst ingeschreven was."]
[null,"Weer ingeschreven","Het aantal jongeren met absoluut verzuim dat weer ingeschreven is in het onderwijs.\n\n","De gemeente geeft leerlingen maar 1 keer als absoluut verzuimer op. Ook al zijn de leerlingen 2 of meer keren absoluut verzuimer geweest en teruggeleid naar school. Vul de aantallen in en gebruik als uitgangspunt waar de leerling stond ingeschreven vóór de status als absoluut verzuimer.  "]
["Relatief verzuim","Relatief verzuim totaal","Het aantal leerlingen waarbij sprake is van meer dan 16 uur ongeoorloofd verzuim gedurende 4 opeenvolgende lesweken.","Het schoolhoofd is verplicht onwettig verzuim van een ingeschreven leerling te melden aan de leerplichtambtenaar. Dit is verzuim van meer dan 16 uren in 4 lesweken. Geef meerdere gevallen bij 1 leerling maar 1 keer op. Vul de aantallen in bij de onderwijssoort in waar de leerling ingeschreven staat. \nTel hierbij ook het luxe verzuim mee. Tel niet mee: signaalverzuim en beginnend verzuim als het minder dan 16 uur is in 4 weken.\n"]
[null,"Waarvan herhaald","Het aantal leerlingen waarbij sprake is van meerdere gevallen van ongeoorloofd verzuim van steeds meer dan 16 uur gedurende 4 opeenvolgende lesweken.\n\n","Het schoolhoofd is verplicht onwettig verzuim van een ingeschreven leerling te melden aan de leerplichtambtenaar. Dit is verzuim van meer dan 16 uren in 4 lesweken. Geef meerdere gevallen bij 1 leerling maar 1 keer op. Vul bij de onderwijssoort de aantallen in waar de leerling ingeschreven staat."]
[null,"Luxe verzuim","Het aantal leerlingen waarvan luxe verzuim is geconstateerd. Ook als dit minder dan 16 uur was.","Luxe verzuim is een vorm van relatief verzuim. Bij luxe verzuim is er verzuim buiten de vastgestelde schoolvakanties. Bijvoorbeeld: op vakantie gaan met ouders/verzorgers i.p.v. schoolbezoek. Tel de leerling maar 1 keer mee, ook al pleegt de leerling meerdere keren luxe verzuim. Tel ook de leerlingen mee bij wie het luxe verzuim minder is dan 16 uren in 4 lesweken.\n\n"]
["Handhaving","Processen-verbaal relatief verzuim","Het aantal leerlingen met een of meer processen-verbaal vanwege relatief verzuim van meer dan 16 uur in 4 opeenvolgende lesweken.\n\n","Hier alleen de PV's vanwege relatief verzuim tellen. \nPV's voor luxe verzuim niet meetellen, deze worden hieronder apart geteld. \nHALT-PV's niet meetellen."]
[null,"Processen-verbaal relatief verzuim waarvan luxe verzuim","Het aantal leerlingen met een of meer processen-verbaal vanwege luxe verzuim.\n\n"]
[null,"Processen-verbaal absoluut verzuim","Het aantal leerlingen met een of meer processen-verbaal vanwege absoluut verzuim.\n\n","Vul bij onderwijssoort de aantallen in van het laatst genoten onderwijs. Degenen die nog geen onderwijs volgden vallen onder 'geen onderwijs'."]
["Langdurig relatief verzuim","Bij aanvang schooljaar","Het aantal langdurig relatief verzuimers bij aanvang van het schooljaar","Een langdurig relatief verzuimer is een ingeschreven leer- of kwalificatieplichtige leerling die langer dan 4 lesweken zonder vrijstelling van leerplicht verzuimt. Het gaat om leerlingen die de laatste 4 weken voor de vakantie zonder vrijstelling verzuimden. Dit zijn ook leerlingen die bij de start van het schooljaar nog steeds langdurig verzuimer waren. Vermeld bij de onderwijssoort de aantallen waar de leerling ingeschreven staat. Tel (langdurige) afwezigheid door ziekte niet mee omdat dit geoorloofd verzuim is.\n"]
[null,"Nieuwe gevallen daarna","Het aantal langdurig relatief verzuimers dat er in de loop van het schooljaar bijgekomen is.\n\n"]
[null,"Langer dan 3 maanden","Het aantal langdurig relatief verzuimers dat langer dan 3 maanden aaneensluitend thuiszit.\n\n","De periode van 3 maanden kan ook al zijn gestart in het voorafgaande schooljaar."]
[null,"Verhuisd (in geval van overlijden, hier meetellen)","Het aantal langdurig relatief verzuimers dat in het schooljaar naar een andere gemeente is verhuisd, terwijl zij nog langdurig relatief verzuimer waren.\n\n",{"$f":"CONCATENATE(\"Tel de leer- of kwalificatieplichtige leerlingen mee die in schooljaar \",H1,\"-\",H2,\" zijn overleden, als die er zijn. Tel ook de langdurig relatief verzuimers mee die zijn teruggeleid (en pas daarna zijn verhuisd) als opgeloste langdurig relatief verzuimer.\")","v":"Tel de leer- of kwalificatieplichtige leerlingen mee die in schooljaar 2023-2024 zijn overleden, als die er zijn. Tel ook de langdurig relatief verzuimers mee die zijn teruggeleid (en pas daarna zijn verhuisd) als opgeloste langdurig relatief verzuimer."}]
[null,"18 jaar geworden","Het aantal langdurig relatief verzuimers dat 18 jaar is geworden\n\n","Langdurig relatief verzuimers die zijn teruggeleid en pas daarna 18 jaar zijn geworden, moeten als opgeloste langdurig relatief verzuimer worden meegeteld."]
[null,"Opgelost","Het aantal langdurig relatief verzuimers dat in de loop van het schooljaar weer naar school is gegaan\n\n","Langdurig relatief verzuimers die zijn verhuisd of 18 jaar zijn geworden terwijl ze nog thuiszaten, hier niet meetellen."]
[null,"Actueel aantal langdurig relatief verzuimers","Niet in te vullen, wordt berekend uit voorgaande gegevens.","Dit is een optelling van:\n- het aantal langdurig relatief verzuimers bij de start van het schooljaar\n- en het aantal nieuwe gevallen\nMet aftrek van:\n- het aantal opgeloste gevallen \n- het aantal gevallen waarbij de leerling 18 jaar is geworden\n- het aantal gevallen waarbij de leerling naar een andere gemeente is verhuisd\n\n"]

{"sheet":"Gemeente codes","index":3,"n_rows":344,"n_cols":3,"rows_kept":344,"cut":false,"hidden":true,"merged":[]}
["VolgNr","LAOV NUMMER","GEMEENTENAAM"]
[1,"deze regel leeg laten ivm keuzevak 1e blad Gemeentenaam"]
[2,"18478","Aa en Hunze"]
[3,"18181","Aalsmeer"]
[4,"18081","Aalten"]
[5,"18026","Achtkarspelen"]
[6,"18244","Alblasserdam"]
[7,"18316","Albrandswaard"]
[8,"18183","Alkmaar"]
[9,"18054","Almelo"]
[10,"18013","Almere"]
[11,"18246","Alphen aan den Rijn"]
[12,"18493","Alphen-Chaam"]
[13,"18551","Altena"]
[14,"18027","Ameland"]
[15,"18153","Amersfoort"]
[16,"18184","Amstelveen"]
[17,"18185","Amsterdam"]
[18,"18083","Apeldoorn"]
[19,"18084","Arnhem"]
[20,"18048","Assen"]
[21,"18363","Asten"]
[22,"18364","Baarle-Nassau"]
[23,"18154","Baarn"]
[24,"18247","Barendrecht"]
[25,"18085","Barneveld"]
[26,"18421","Beek"]
[27,"18552","Beekdaelen"]
[28,"18422","Beesel"]
[29,"18110","Berg en Dal"]
[30,"18494","Bergeijk"]
[31,"18423","Bergen (L.)"]
[32,"18191","Bergen (NH.)"]
[33,"18365","Bergen op Zoom"]
[34,"18514","Berkelland"]
[35,"18491","Bernheze"]
[36,"18366","Best"]
[37,"18088","Beuningen"]
[38,"18192","Beverwijk"]
[39,"18495","Bladel"]
[40,"18193","Blaricum"]
[41,"18194","Bloemendaal"]
[42,"18532","Bodegraven-Reeuwijk"]
[43,"18367","Boekel"]
[44,"18479","Borger-Odoorn"]
[45,"18056","Borne"]
[46,"18339","Borsele"]
[47,"18369","Boxtel"]
[48,"18370","Breda"]
[49,"18517","Bronckhorst"]
[50,"18090","Brummen"]
[51,"18424","Brunssum"]
[52,"18157","Bunnik"]
[53,"18158","Bunschoten"]
[54,"18091","Buren"]
[55,"18256","Capelle aan den IJssel"]
[56,"18196","Castricum"]
[57,"18049","Coevorden"]
[58,"18488","Cranendonck"]
[59,"18092","Culemborg"]
[60,"18057","Dalfsen"]
[61,"18529","Dantumadiel"]
[62,"18155","De Bilt"]
[63,"18538","De Fryske Marren"]
[64,"18360","De Ronde Venen"]
[65,"18482","De Wolden"]
[66,"18257","Delft"]
[67,"18209","Den Helder"]
[68,"18371","Deurne"]
[69,"18059","Deventer"]
[70,"18197","Diemen"]
[71,"18561","Dijk en Waard"]
[72,"18058","Dinkelland"]
[73,"18096","Doesburg"]
[74,"18515","Doetinchem"]
[75,"18373","Dongen"]
[76,"18259","Dordrecht"]
[77,"18253","Drechterland"]
[78,"18490","Drimmelen"]
[79,"18149","Dronten"]
[80,"18098","Druten"]
[81,"18099","Duiven"]
[82,"18509","Echt-Susteren"]
[83,"18198","Edam-Volendam"]
[84,"18101","Ede"]
[85,"18161","Eemnes"]
[86,"18558","Eemsdelta"]
[87,"18374","Eersel"]
[88,"18533","Eijsden-Margraten"]
[89,"18375","Eindhoven"]
[90,"18103","Elburg"]
[91,"18050","Emmen"]
[92,"18199","Enkhuizen"]
[93,"18060","Enschede"]
[94,"18104","Epe"]
[95,"18105","Ermelo"]
[96,"18376","Etten-Leur"]
[97,"18377","Geertruidenberg"]
[98,"18513","Geldrop-Mierlo"]
[99,"18462","Gemert-Bakel"]
[100,"18427","Gennep"]
[101,"18379","Gilze en Rijen"]
[102,"18536","Goeree-Overflakkee"]
[103,"18340","Goes"]
[104,"18380","Goirle"]
[105,"18541","Gooise Meren"]
[106,"18261","Gorinchem"]
[107,"18262","Gouda"]
[108,"18006","Groningen"]
[109,"18496","Gulpen-Wittem"]
[110,"18061","Haaksbergen"]
[111,"18201","Haarlem"]
[112,"18203","Haarlemmermeer"]
[113,"18463","Halderberge"]
[114,"18062","Hardenberg"]
[115,"18111","Harderwijk"]
[116,"18266","Hardinxveld-Giessendam"]
[117,"18032","Harlingen"]
[118,"18112","Hattem"]
[119,"18205","Heemskerk"]
[120,"18206","Heemstede"]
[121,"18113","Heerde"]
[122,"18033","Heerenveen"]
[123,"18429","Heerlen"]
[124,"18464","Heeze-Leende"]
[125,"18208","Heiloo"]
[126,"18063","Hellendoorn"]
[127,"18383","Helmond"]
[128,"18270","Hendrik-Ido-Ambacht"]
[129,"18114","Hengelo"]
[130,"18553","Het Hogeland"]
[131,"18115","Heumen"]
[132,"18385","Heusden"]
[133,"18272","Hillegom"]
[134,"18386","Hilvarenbeek"]
[135,"18210","Hilversum"]
[136,"18549","Hoeksche Waard"]
[137,"18500","Hof van Twente"]
[138,"18535","Hollands Kroon"]
[139,"18051","Hoogeveen"]
[140,"18211","Hoorn"]
[141,"18460","Horst aan de Maas"]
[142,"18162","Houten"]
[143,"18212","Huizen"]
[144,"18343","Hulst"]
[145,"18178","IJsselstein"]
[146,"18525","Kaag en Braassem"]
[147,"18065","Kampen"]
[148,"18344","Kapelle"]
[149,"18273","Katwijk"]
[150,"18433","Kerkrade"]
[151,"18522","Koggenland"]
[152,"18274","Krimpen aan den IJssel"]
[153,"18540","Krimpenerwaard"]
[154,"18465","Laarbeek"]
[155,"18559","Land van Cuijk"]
[156,"18419","Landgraaf"]
[157,"18214","Landsmeer"]
[158,"18521","Lansingerland"]
[159,"18216","Laren"]
[160,"18035","Leeuwarden"]
[161,"18276","Leiden"]
[162,"18277","Leiderdorp"]
[163,"18506","Leidschendam-Voorburg"]
[164,"18459","Lelystad"]
[165,"18523","Leudal"]
[166,"18164","Leusden"]
[167,"18086","Lingewaard"]
[168,"18280","Lisse"]
[169,"18119","Lochem"]
[170,"18388","Loon op Zand"]
[171,"18167","Lopik"]
[172,"18066","Losser"]
[173,"18120","Maasdriel"]
[174,"18524","Maasgouw"]
[175,"18560","Maashorst"]
[176,"18282","Maassluis"]
[177,"18437","Maastricht"]
[178,"18218","Medemblik"]
[179,"18439","Meerssen"]
[180,"18545","Meierijstad"]
[181,"18052","Meppel"]
[182,"18346","Middelburg"]
[183,"18512","Midden-Delfland"]
[184,"18498","Midden-Drenthe"]
[185,"18546","Midden-Groningen"]
[186,"18489","Moerdijk"]
[187,"18555","Molenlanden"]
[188,"18518","Montferland"]
[189,"18170","Montfoort"]
[190,"18441","Mook en Middelaar"]
[191,"18117","Neder-Betuwe"]
[192,"18442","Nederweert"]
[193,"18180","Nieuwegein"]
[194,"18290","Nieuwkoop"]
[195,"18123","Nijkerk"]
[196,"18124","Nijmegen"]
[197,"18539","Nissewaard"]
[198,"18556","Noardeast-Fryslân"]
[199,"18483","Noord-Beveland"]
[200,"18485","Noordenveld"]
[201,"18067","Noordoostpolder"]
[202,"18292","Noordwijk"]
[203,"18391","Nuenen Gerwen en Nederwetten"]
[204,"18148","Nunspeet"]
[205,"18295","Oegstgeest"]
[206,"18392","Oirschot"]
[207,"18393","Oisterwijk"]
[208,"18528","Oldambt"]
[209,"18125","Oldebroek"]
[210,"18068","Oldenzaal"]
[211,"18069","Olst-Wijhe"]
[212,"18070","Ommen"]
[213,"18109","Oost Gelre"]
[214,"18394","Oosterhout"]
[215,"18039","Ooststellingwerf"]
[216,"18223","Oostzaan"]
[217,"18224","Opmeer"]
[218,"18040","Opsterland"]
[219,"18395","Oss"]
[220,"18516","Oude IJsselstreek"]
[221,"18225","Ouder-Amstel"]
[222,"18300","Oudewater"]
[223,"18499","Overbetuwe"]
[224,"18301","Papendrecht"]
[225,"18527","Peel en Maas"]
[226,"18372","Pekela"]
[227,"18507","Pijnacker-Nootdorp"]
[228,"18226","Purmerend"]
[229,"18126","Putten"]
[230,"18071","Raalte"]
[231,"18351","Reimerswaal"]
[232,"18127","Renkum"]
[233,"18171","Renswoude"]
[234,"18469","Reusel-De Mierden"]
[235,"18128","Rheden"]
[236,"18172","Rhenen"]
[237,"18304","Ridderkerk"]
[238,"18072","Rijssen-Holten"]
[239,"18308","Rijswijk"]
[240,"18470","Roerdalen"]
[241,"18444","Roermond"]
[242,"18475","Roosendaal"]
[243,"18305","Rotterdam"]
[244,"18129","Rozendaal"]
[245,"18397","Rucphen"]
[246,"18227","Schagen"]
[247,"18131","Scherpenzeel"]
[248,"18310","Schiedam"]
[249,"18041","Schiermonnikoog"]
[250,"18476","Schouwen-Duiveland"]
[251,"18264","'s-Gravenhage"]
[252,"18384","'s-Hertogenbosch"]
[253,"18447","Simpelveld"]
[254,"18399","Sint-Michielsgestel"]
[255,"18501","Sittard-Geleen"]
[256,"18313","Sliedrecht"]
[257,"18508","Sluis"]
[258,"18042","Smallingerland"]
[259,"18173","Soest"]
[260,"18401","Someren"]
[261,"18402","Son en Breugel"]
[262,"18014","Stadskanaal"]
[263,"18073","Staphorst"]
[264,"18271","Stede Broec"]
[265,"18403","Steenbergen"]
[266,"18074","Steenwijkerland"]
[267,"18448","Stein"]
[268,"18534","Stichtse Vecht"]
[269,"18531","Súdwest-Fryslân"]
[270,"18510","Terneuzen"]
[271,"18044","Terschelling"]
[272,"18228","Texel"]
[273,"18519","Teylingen"]
[274,"18356","Tholen"]
[275,"18133","Tiel"]
[276,"18405","Tilburg"]
[277,"18075","Tubbergen"]
[278,"18077","Twenterand"]
[279,"18497","Tynaarlo"]
[280,"18361","Tytsjerksteradiel"]
[281,"18229","Uitgeest"]
[282,"18230","Uithoorn"]
[283,"18076","Urk"]
[284,"18174","Utrecht"]
[285,"18520","Utrechtse Heuvelrug"]
[286,"18452","Vaals"]
[287,"18458","Valkenburg aan de Geul"]
[288,"18407","Valkenswaard"]
[289,"18017","Veendam"]
[290,"18175","Veenendaal"]
[291,"18357","Veere"]
[292,"18409","Veldhoven"]
[293,"18231","Velsen"]
[294,"18453","Venlo"]
[295,"18454","Venray"]
[296,"18550","Vijfheerenlanden"]
[297,"18321","Vlaardingen"]
[298,"18045","Vlieland"]
[299,"18358","Vlissingen"]
[300,"18455","Voerendaal"]
[301,"18562","Voorne aan Zee"]
[302,"18325","Voorschoten"]
[303,"18135","Voorst"]
[304,"18410","Vught"]
[305,"18548","Waadhoeke"]
[306,"18411","Waalre"]
[307,"18412","Waalwijk"]
[308,"18326","Waddinxveen"]
[309,"18137","Wageningen"]
[310,"18328","Wassenaar"]
[311,"18404","Waterland"]
[312,"18456","Weert"]
[313,"18557","West Betuwe"]
[314,"18341","West Maas en Waal"]
[315,"18554","Westerkwartier"]
[316,"18486","Westerveld"]
[317,"18140","Westervoort"]
[318,"18547","Westerwolde"]
[319,"18511","Westland"]
[320,"18046","Weststellingwerf"]
[321,"18078","Wierden"]
[322,"18143","Wijchen"]
[323,"18505","Wijdemeren"]
[324,"18177","Wijk bij Duurstede"]
[325,"18141","Winterswijk"]
[326,"18414","Woensdrecht"]
[327,"18330","Woerden"]
[328,"18417","Wormerland"]
[329,"18176","Woudenberg"]
[330,"18242","Zaanstad"]
[331,"18144","Zaltbommel"]
[332,"18239","Zandvoort"]
[333,"18019","Zeewolde"]
[334,"18179","Zeist"]
[335,"18146","Zevenaar"]
[336,"18331","Zoetermeer"]
[337,"18332","Zoeterwoude"]
[338,"18526","Zuidplas"]
[339,"18416","Zundert"]
[340,"18147","Zutphen"]
[341,"18502","Zwartewaterland"]
[342,"18333","Zwijndrecht"]
[343,"18079","Zwolle"]

{"sheet":"Normen","index":4,"n_rows":24,"n_cols":12,"rows_kept":24,"cut":false,"hidden":true,"merged":[[16,1,20,1],[3,1,4,1],[5,1,8,1],[9,1,12,1],[9,2,10,2],[11,2,12,2],[13,1,15,1],[13,2,13,3]]}
[null,2023,{"$f":"B1+1","v":2024}]
[null,null,null,null,"speciaal basis-onderwijs",null,"(voortgezet) speciaal onderwijs",null,"voortgezet onderwijs",null,"middelbaar beroepsonderwijs"]
[null,null,null,null,"min","max","min","max","min","max","min","max"]
[null,"vervangende leerplicht","art. 3a"]
[null,null,"art. 3b"]
[null,"vrijstellingen","art. 5 onder a",null,0,0.01,0,0.04,0,0.01,0,0.01]
[null,null,"art. 5 onder b"]
[null,null,"art. 5 onder c",null,0,0.02,0,0.02,0,0.02,0,0.02]
[null,null,"art 15",null,0,0.01,0,0.02,0,0.01,0,0.02]
[null,"Ongeoorloofd verzuim","absoluut","totaal",0,0.02,0,0.02,0,0.02,0,0.02]
[null,null,null,"weer ingeschreven",0,0.02,0,0.02,0,0.02,0,0.02]
[null,null,"relatief","totaal",0,0.02,0,0.15,0.02,0.08,0.05,0.19]
[null,null,null,"waarvan luxe verzuim",0,0.02,0,0.02,0,0.02,0,0.02]
[null,"processen verbaal","absoluut verzuim",null,0,0.02,0,0.02,0,0.02,0,0.02]
[null,null,"relatief verzuim","totaal",0,0.01,0,0.05,0,0.02,0,0.02]
[null,null,null,"waarvan luxe verzuim",0,0.01,0,0.01,0,0.01,0,0.01]
[null,"thuiszitters","per 1 sept",null,0,0.01,0,0.01,0,0.01,0,0.01]
[null,null,"nieuwe gevallen"]
[null,null,"langer dan 6 maanden"]
[null,null,"opgelost",null,0,0.01,0,2.5000000000000001E-2,0,0.01,0,0.02]
[null,null,"18 jaar geworden"]
[]
[]
[null,null,null,"betekent te weinig meldingen om een goede uitspraak te doen over uitschieters"]

{"sheet":"Historie","index":5,"n_rows":1,"n_cols":3,"rows_kept":1,"cut":false,"hidden":true,"merged":[]}
["Datum","Gebruiker","Computer"]